fUSD/lending_fUSD_20250322
["ID","MTS","AMOUNT","RATE_DAILY","PERIOD"]
[356566352,1742680276120,-207.0,0.0004744,30]
[356566353,1742680276129,-150.0,0.00047442,30]
[356566354,1742680276138,-150.0,0.00047456,30]
[356566355,1742680276147,-200.0,0.00047499,120]
[356566356,1742680276260,-500.0,0.000475,120]
[356566357,1742680276270,-150.0,0.00047501,30]
[356566358,1742680276278,-150.0,0.00047542,30]
[356566359,1742680276291,-150.0,0.0004755,30]
[356566360,1742680276300,-150.0,0.0004756,30]
[356566361,1742680276309,-150.0,0.000476,44]
[356566362,1742680276317,-150.0,0.0004762,30]
[356566363,1742680276326,-150.0,0.00047629,30]
[356566364,1742680276338,-400.0,0.0004767,3]
[356566365,1742680276348,-300.0,0.0004767,3]
[356566366,1742680276357,-500.0,0.00047671,2]
[356566367,1742680276366,-500.0,0.00047671,120]
[356566368,1742680276375,-500.0,0.00047671,120]
[356566369,1742680276385,-1112.04,0.00047671,120]
[356566370,1742680276395,-500.0,0.00047671,120]
[356566371,1742680276405,-202.17751795,0.00047671,120]
[356566372,1742680276415,-541.66,0.00047671,120]
[356566373,1742680276424,-500.0,0.00047671,7]
[356566374,1742680276434,-523.07,0.00047671,120]
[356566375,1742680276444,-500.0,0.00047671,120]
[356566376,1742680276455,-366.51616214,0.00047671,120]
[356566377,1742680276466,-500.0,0.00047671,120]
[356566378,1742680276477,-1995.08,0.00047671,120]
[356566379,1742680276487,-500.0,0.00047671,120]
[356566380,1742680276499,-500.0,0.00047671,120]
[356566381,1742680276510,-588.46341261,0.00047671,120]
[356566382,1742680276521,-500.0,0.00047671,120]
[356566383,1742680276531,-585.0,0.00047671,120]
[356566384,1742680276542,-506.53,0.00047671,120]
[356566385,1742680276552,-715.73,0.00047671,120]
[356566386,1742680276561,-500.0,0.00047671,120]
[356566387,1742680276571,-500.0,0.00047671,120]
[356566388,1742680276582,-1700.91,0.00047671,120]
[356566389,1742680276592,-477.97051752,0.00047671,120]
[356566390,1742680276602,-749.15,0.00047671,120]
[356566391,1742680276612,-500.0,0.00047671,120]
[356566392,1742680276623,-500.0,0.00047671,120]
[356566393,1742680276632,-14463.29,0.00047671,120]
[356566394,1742680276643,-900.87,0.00047671,2]
[356566395,1742680276652,-500.0,0.00047671,120]
[356566396,1742680276662,-1076.21,0.00047671,120]
[356566397,1742680276673,-722.27,0.00047671,120]
[356566398,1742680276684,-945.13,0.00047671,120]
[356566399,1742680276694,-500.0,0.00047671,100]
[356566400,1742680276704,-834.39,0.00047671,120]
[356566401,1742680276713,-500.89010002,0.00047671,120]
[356566402,1742680276723,-696.25,0.00047671,120]
[356566403,1742680276733,-500.0,0.00047671,120]
[356566404,1742680276742,-500.0,0.00047671,120]
[356566405,1742680276752,-686.72,0.00047671,120]
[356566406,1742680276762,-500.0,0.00047671,120]
[356566407,1742680276772,-500.0,0.00047671,120]
[356566408,1742680276781,-500.0,0.00047671,120]
[356566410,1742680276791,-500.0,0.00047671,120]
[356566411,1742680276801,-909.88,0.00047671,120]
[356566412,1742680276811,-503.41,0.00047671,120]
[356566413,1742680276821,-1424.5,0.00047671,120]
[356566414,1742680276831,-500.0,0.00047671,120]
[356566415,1742680276841,-500.0,0.00047671,120]
[356566416,1742680276850,-500.0,0.00047671,120]
[356566417,1742680276860,-500.0,0.00047671,120]
[356566418,1742680276869,-670.46,0.00047671,120]
[356566419,1742680276879,-500.0,0.00047671,120]
[356566420,1742680276888,-602.75,0.00047671,120]
[356566421,1742680276898,-528.26,0.00047671,120]
[356566422,1742680276908,-500.0,0.00047671,120]
[356566423,1742680276918,-939.41,0.00047671,120]
[356566424,1742680276927,-150.0,0.00047679,30]
[356566425,1742680276936,-150.0,0.000477,30]
[356566426,1742680276946,-602.83,0.00047713,2]
[356566427,1742680276956,-150.0,0.00047715,30]
[356566428,1742680276967,-150.0,0.00047738,30]
[356566429,1742680276976,-158.65,0.00047753,30]
[356566430,1742680276986,-150.0,0.00047755,30]
[356566431,1742680276995,-150.0,0.00047798,30]
[356566432,1742680277005,-463.08643829,0.000478,120]
[356566433,1742680277016,-150.0,0.00047802,30]
[356566434,1742680277026,-150.0,0.0004785,30]
[356566435,1742680277037,-150.0,0.00047857,30]
[356566436,1742680277047,-150.0,0.00047888,30]
[356566437,1742680277057,-700.0,0.000479,17]
[356566438,1742680277067,-150.0,0.00047916,30]
[356566439,1742680277077,-500.0,0.00047945,2]
[356566440,1742680277087,-500.0,0.00047945,120]
[356566441,1742680277098,-496.73180011,0.00047945,120]
[356566442,1742680277109,-1112.04,0.00047945,120]
[356566443,1742680277118,-500.0,0.00047945,120]
[356566444,1742680277128,-541.66,0.00047945,120]
[356566445,1742680277138,-500.0,0.00047945,7]
[356566446,1742680277148,-191.15,0.00047945,120]
[356566447,1742680277158,-523.07,0.00047945,120]
[356566448,1742680277168,-500.0,0.00047945,120]
[356566449,1742680277179,-500.0,0.00047945,120]
[356566450,1742680277188,-1995.08,0.00047945,120]
[356566451,1742680277198,-500.0,0.00047945,120]
[356566452,1742680277208,-500.0,0.00047945,120]
[356566453,1742680277218,-500.0,0.00047945,120]
[356566454,1742680277228,-585.0,0.00047945,120]
[356566455,1742680277238,-506.53,0.00047945,120]
[356566456,1742680277248,-715.73,0.00047945,120]
[356566457,1742680277257,-503.79583419,0.00047945,120]
[356566458,1742680277267,-500.0,0.00047945,120]
[356566459,1742680277277,-1700.91,0.00047945,120]
[356566460,1742680277287,-749.15,0.00047945,120]
[356566461,1742680277300,-500.0,0.00047945,120]
[356566462,1742680277311,-500.0,0.00047945,120]
[356566463,1742680277321,-14463.29,0.00047945,120]
[356566464,1742680277331,-900.87,0.00047945,2]
[356566465,1742680277342,-264.90982747,0.00047945,120]
[356566466,1742680277351,-1076.21,0.00047945,120]
[356566467,1742680277361,-722.27,0.00047945,120]
[356566468,1742680277373,-945.13,0.00047945,120]
[356566469,1742680277384,-500.0,0.00047945,100]
[356566470,1742680277394,-834.39,0.00047945,120]
[356566471,1742680277405,-696.25,0.00047945,120]
[356566472,1742680277415,-500.0,0.00047945,120]
[356566473,1742680277425,-500.0,0.00047945,120]
[356566474,1742680277435,-686.72,0.00047945,120]
[356566475,1742680277445,-500.0,0.00047945,120]
[356566476,1742680277455,-500.0,0.00047945,120]
[356566477,1742680277466,-500.0,0.00047945,120]
[356566478,1742680277477,-500.0,0.00047945,120]
[356566479,1742680277487,-909.88,0.00047945,120]
[356566480,1742680277497,-503.41,0.00047945,120]
[356566481,1742680277508,-1424.5,0.00047945,120]
[356566482,1742680277519,-500.0,0.00047945,120]
[356566483,1742680277530,-243.61951477,0.00047945,120]
[356566484,1742680277541,-325.52547569,0.00047945,120]
[356566485,1742680277551,-500.0,0.00047945,120]
[356566486,1742680277561,-670.46,0.00047945,120]
[356566487,1742680277571,-500.0,0.00047945,120]
[356566488,1742680277581,-602.75,0.00047945,120]
[356566489,1742680277592,-528.26,0.00047945,120]
[356566490,1742680277602,-500.0,0.00047945,120]
[356566491,1742680277612,-939.41,0.00047945,120]
[356566492,1742680277622,-3623.10393371,0.00047946,120]
[356566493,1742680277632,-150.0,0.00047975,30]
[356566494,1742680277642,-150.0,0.00047976,30]
[356566495,1742680277652,-500.0,0.00047986,120]
[356566496,1742680277661,-800.0,0.00047986,120]
[356566497,1742680277671,-2700.0,0.00047986,120]
[356566498,1742680277680,-50000.0,0.00048,48]
[356566499,1742680277690,-1200.0,0.00048,120]
[356566500,1742680277699,-251.1,0.00048,10]
[356566501,1742680277709,-188.0,0.00048,120]
[356566502,1742680277718,-500.0,0.00048,120]
[356566503,1742680277727,-150.0,0.00048,30]
[356566504,1742680277736,-150.0,0.00048035,30]
[356566505,1742680277746,-150.0,0.00048061,30]
[356566506,1742680277756,-150.0,0.00048094,30]
[356566507,1742680277766,-150.0,0.00048147,30]
[356566508,1742680277775,-150.0,0.0004815,30]
[356566509,1742680277784,-150.0,0.00048153,30]
[356566510,1742680277794,-35369.84,0.000482,2]
[356566511,1742680277803,-150.0,0.00048213,30]
[356566512,1742680277812,-150.0,0.00048218,30]
[356566513,1742680277821,-500.0,0.00048219,2]
[356566514,1742680277830,-500.0,0.00048219,120]
[356566515,1742680277840,-1112.04,0.00048219,120]
[356566516,1742680277849,-500.0,0.00048219,120]
[356566517,1742680277858,-541.66,0.00048219,120]
[356566518,1742680277867,-490.33917302,0.00048219,7]
[356566519,1742680277876,-523.07,0.00048219,120]
[356566520,1742680277886,-500.0,0.00048219,120]
[356566521,1742680277895,-500.0,0.00048219,120]
[356566522,1742680277904,-1995.08,0.00048219,120]
[356566523,1742680277914,-594.77450532,0.00048219,120]
[356566524,1742680277924,-631.62167732,0.00048219,120]
[356566525,1742680277933,-500.0,0.00048219,120]
[356566526,1742680277943,-585.0,0.00048219,120]
[356566527,1742680277952,-506.53,0.00048219,120]
[356566528,1742680277961,-715.73,0.00048219,120]
[356566529,1742680277970,-500.0,0.00048219,120]
[356566530,1742680277980,-1700.91,0.00048219,120]
[356566531,1742680277989,-749.15,0.00048219,120]
[356566532,1742680277999,-500.0,0.00048219,120]
[356566533,1742680278008,-427.13282914,0.00048219,120]
[356566534,1742680278016,-14463.29,0.00048219,120]
[356566535,1742680278025,-900.87,0.00048219,2]
[356566536,1742680278035,-1076.21,0.00048219,120]
[356566537,1742680278044,-722.27,0.00048219,120]
[356566538,1742680278054,-945.13,0.00048219,120]
[356566539,1742680278063,-500.0,0.00048219,100]
[356566540,1742680278072,-834.39,0.00048219,120]
[356566541,1742680278082,-696.25,0.00048219,120]
[356566542,1742680278091,-500.0,0.00048219,120]
[356566543,1742680278100,-500.0,0.00048219,120]
[356566544,1742680278109,-686.72,0.00048219,120]
[356566545,1742680278118,-239.55453796,0.00048219,120]
[356566546,1742680278128,-500.0,0.00048219,120]
[356566547,1742680278137,-500.0,0.00048219,120]
[356566548,1742680278147,-500.0,0.00048219,120]
[356566549,1742680278156,-909.88,0.00048219,120]
[356566550,1742680278165,-503.41,0.00048219,120]
[356566551,1742680278174,-1424.5,0.00048219,120]
[356566552,1742680278183,-500.0,0.00048219,120]
[356566553,1742680278192,-500.0,0.00048219,120]
[356566554,1742680278305,-670.46,0.00048219,120]
[356566555,1742680278316,-500.0,0.00048219,120]
[356566556,1742680278326,-602.75,0.00048219,120]
[356566557,1742680278337,-528.26,0.00048219,120]
[356566558,1742680278348,-500.0,0.00048219,120]
[356566559,1742680278358,-939.41,0.00048219,120]
[356566560,1742680278368,-150.0,0.00048234,30]
[356566561,1742680278379,-150.0,0.00048272,30]
[356566562,1742680278389,-150.0,0.000483,30]
[356566563,1742680278400,-150.0,0.0004832,30]
[356566564,1742680278410,-150.0,0.00048331,30]
[356566565,1742680278420,-150.0,0.00048391,30]
[356566566,1742680278430,-704.02,0.000484,7]
[356566567,1742680278440,-550.44,0.000484,45]
[356566568,1742680278450,-550.44,0.000484,45]
[356566569,1742680278460,-550.44,0.000484,45]
[356566570,1742680278470,-550.44,0.000484,45]
[356566571,1742680278480,-550.44,0.000484,45]
[356566572,1742680278490,-550.44,0.000484,45]
[356566573,1742680278500,-550.44,0.000484,45]
[356566574,1742680278510,-550.44,0.000484,45]
[356566575,1742680278521,-550.44,0.000484,45]
[356566576,1742680278531,-550.44,0.000484,45]
[356566577,1742680278542,-550.44,0.000484,45]
[356566578,1742680278552,-550.44,0.000484,45]
[356566579,1742680278563,-550.44,0.000484,45]
[356566580,1742680278573,-550.44,0.000484,45]
[356566581,1742680278584,-550.44,0.000484,45]
[356566582,1742680278594,-550.44,0.000484,45]
[356566583,1742680278605,-550.44,0.000484,45]
[356566584,1742680278615,-550.44,0.000484,45]
[356566585,1742680278625,-550.44,0.000484,45]
[356566586,1742680278634,-550.44,0.000484,45]
[356566587,1742680278644,-550.44,0.000484,45]
[356566588,1742680278654,-550.44,0.000484,45]
[356566589,1742680278663,-550.44,0.000484,45]
[356566590,1742680278673,-550.44,0.000484,45]
[356566591,1742680278682,-150.0,0.00048407,30]
[356566592,1742680278692,-1063.0,0.0004845,30]
[356566593,1742680278702,-1081.27430021,0.0004845,30]
[356566594,1742680278711,-150.0,0.0004845,30]
[356566595,1742680278721,-150.0,0.0004845,30]
[356566596,1742680278730,-500.0,0.00048493,2]
[356566597,1742680278740,-500.0,0.00048493,120]
[356566598,1742680278749,-1112.04,0.00048493,120]
[356566599,1742680278759,-182.29773681,0.00048493,120]
[356566600,1742680278768,-541.66,0.00048493,120]
[356566601,1742680278778,-523.07,0.00048493,120]
[356566602,1742680278787,-500.0,0.00048493,120]
[356566603,1742680278796,-500.0,0.00048493,120]
[356566604,1742680278805,-1995.08,0.00048493,120]
[356566605,1742680278815,-500.0,0.00048493,120]
[356566606,1742680278824,-585.0,0.00048493,120]
[356566607,1742680278834,-506.53,0.00048493,120]
[356566608,1742680278843,-715.73,0.00048493,120]
[356566609,1742680278852,-500.0,0.00048493,120]
[356566610,1742680278862,-1700.91,0.00048493,120]
[356566611,1742680278871,-749.15,0.00048493,120]
[356566612,1742680278881,-500.0,0.00048493,120]
[356566613,1742680278890,-14463.29,0.00048493,120]
[356566614,1742680278899,-900.87,0.00048493,2]
[356566615,1742680278909,-1076.21,0.00048493,120]
[356566616,1742680278918,-722.27,0.00048493,120]
[356566617,1742680278928,-945.13,0.00048493,120]
[356566618,1742680278937,-500.0,0.00048493,100]
[356566619,1742680278947,-834.39,0.00048493,120]
[356566620,1742680278956,-696.25,0.00048493,120]
[356566621,1742680278966,-500.0,0.00048493,120]
[356566622,1742680278975,-500.0,0.00048493,120]
[356566623,1742680278984,-686.72,0.00048493,120]
[356566624,1742680278994,-500.0,0.00048493,120]
[356566625,1742680279003,-500.0,0.00048493,120]
[356566626,1742680279012,-500.0,0.00048493,120]
[356566627,1742680279022,-909.88,0.00048493,120]
[356566628,1742680279031,-503.41,0.00048493,120]
[356566629,1742680279041,-1424.5,0.00048493,120]
[356566630,1742680279050,-500.0,0.00048493,120]
[356566631,1742680279059,-500.0,0.00048493,120]
[356566632,1742680279069,-670.46,0.00048493,120]
[356566633,1742680279078,-500.0,0.00048493,120]
[356566634,1742680279087,-602.75,0.00048493,120]
[356566635,1742680279097,-528.26,0.00048493,120]
[356566636,1742680279107,-500.0,0.00048493,120]
[356566637,1742680279116,-939.41,0.00048493,120]
[356566638,1742680279125,-150.0,0.00048493,30]
[356566639,1742680279135,-3000.0,0.00048499,120]
[356566640,1742680279144,-150.0,0.00048509,30]
[356566641,1742680279154,-500.0,0.00048534,120]
[356566642,1742680279163,-800.0,0.00048534,120]
[356566643,1742680279172,-2700.0,0.00048534,120]
[356566644,1742680279182,-150.0,0.00048569,30]
[356566645,1742680279191,-150.0,0.0004858,30]
[356566646,1742680279200,-1927.02653091,0.000486,120]
[356566647,1742680279209,-150.0,0.000486,30]
[356566648,1742680279219,-150.0,0.00048628,30]
[356566649,1742680279228,-204.0,0.0004863,30]
[356566650,1742680279237,-201.0,0.0004863,30]
[356566651,1742680279246,-207.0,0.0004863,30]
[356566652,1742680279255,-150.0,0.00048666,30]
[356566653,1742680279264,-150.0,0.00048682,30]
[356566654,1742680279274,-150.0,0.00048687,30]
[356566655,1742680279283,-150.0,0.00048747,30]
[356566656,1742680279297,-150.0,0.0004875,30]
[356566657,1742680279307,-150.0,0.00048753,30]
[356566658,1742680279316,-500.0,0.00048767,2]
[356566659,1742680279326,-500.0,0.00048767,120]
[356566660,1742680279337,-1112.04,0.00048767,120]
[356566661,1742680279347,-541.66,0.00048767,120]
[356566662,1742680279356,-523.07,0.00048767,120]
[356566663,1742680279366,-500.0,0.00048767,120]
[356566664,1742680279376,-500.0,0.00048767,120]
[356566665,1742680279386,-1995.08,0.00048767,120]
[356566666,1742680279396,-500.0,0.00048767,120]
[356566667,1742680279406,-585.0,0.00048767,120]
[356566668,1742680279416,-506.53,0.00048767,120]
[356566669,1742680279426,-715.73,0.00048767,120]
[356566670,1742680279435,-500.0,0.00048767,120]
[356566671,1742680279445,-1700.91,0.00048767,120]
[356566672,1742680279454,-749.15,0.00048767,120]
[356566673,1742680279463,-500.0,0.00048767,120]
[356566674,1742680279473,-14463.29,0.00048767,120]
[356566675,1742680279482,-900.87,0.00048767,2]
[356566676,1742680279492,-1076.21,0.00048767,120]
[356566677,1742680279501,-722.27,0.00048767,120]
[356566678,1742680279511,-945.13,0.00048767,120]
[356566679,1742680279520,-500.0,0.00048767,100]
[356566680,1742680279529,-834.39,0.00048767,120]
[356566681,1742680279539,-696.25,0.00048767,120]
[356566682,1742680279548,-500.0,0.00048767,120]
[356566683,1742680279558,-335.16406668,0.00048767,120]
[356566684,1742680279567,-686.72,0.00048767,120]
[356566685,1742680279577,-500.0,0.00048767,120]
[356566686,1742680279587,-500.0,0.00048767,120]
[356566687,1742680279597,-519.34297455,0.00048767,120]
[356566688,1742680279606,-909.88,0.00048767,120]
[356566689,1742680279616,-503.41,0.00048767,120]
[356566690,1742680279625,-1424.5,0.00048767,120]
[356566691,1742680279635,-500.0,0.00048767,120]
[356566692,1742680279644,-572.69468767,0.00048767,120]
[356566693,1742680279654,-670.46,0.00048767,120]
[356566694,1742680279663,-500.0,0.00048767,120]
[356566695,1742680279673,-602.75,0.00048767,120]
[356566696,1742680279682,-528.26,0.00048767,120]
[356566697,1742680279692,-500.0,0.00048767,120]
[356566698,1742680279702,-939.41,0.00048767,120]
[356566699,1742680279712,-3216.55148283,0.000488,120]
[356566700,1742680279721,-150.0,0.00048806,30]
[356566701,1742680279730,-150.0,0.00048839,30]
[356566702,1742680279740,-150.0,0.00048865,30]
[356566703,1742680279749,-150.0,0.000489,30]
[356566704,1742680279759,-150.0,0.00048924,30]
[356566705,1742680279768,-150.0,0.00048925,30]
[356566706,1742680279778,-150.0,0.00048984,30]
[356566707,1742680279787,-50000.0,0.00049,49]
[356566708,1742680279796,-1000.0,0.00049,120]
[356566709,1742680279806,-2000.0,0.00049,60]
[356566710,1742680279815,-5000.0,0.00049,120]
[356566711,1742680279825,-1010.0,0.00049,120]
[356566712,1742680279835,-41794.96619428,0.00049,2]
[356566713,1742680279844,-1000.0,0.00049,2]
[356566714,1742680279853,-500.0,0.00049,120]
[356566715,1742680279863,-27040.0,0.00049,120]
[356566716,1742680279872,-150.0,0.00049012,30]
[356566717,1742680279882,-500.0,0.00049041,2]
[356566718,1742680279891,-500.0,0.00049041,120]
[356566719,1742680279901,-1112.04,0.00049041,120]
[356566720,1742680279911,-541.66,0.00049041,120]
[356566721,1742680279920,-523.07,0.00049041,120]
[356566722,1742680279930,-500.0,0.00049041,120]
[356566723,1742680279941,-500.0,0.00049041,120]
[356566724,1742680279951,-1995.08,0.00049041,120]
[356566725,1742680279962,-500.0,0.00049041,120]
[356566726,1742680279971,-585.0,0.00049041,120]
[356566727,1742680279980,-506.53,0.00049041,120]
[356566728,1742680279990,-715.73,0.00049041,120]
[356566729,1742680280002,-500.0,0.00049041,120]
[356566730,1742680280011,-1700.91,0.00049041,120]
[356566731,1742680280020,-749.15,0.00049041,120]
[356566732,1742680280029,-500.0,0.00049041,120]
[356566733,1742680280039,-14463.29,0.00049041,120]
[356566734,1742680280144,-900.87,0.00049041,2]
[356566735,1742680280179,-1076.21,0.00049041,120]
[356566736,1742680280206,-722.27,0.00049041,120]
[356566737,1742680280232,-945.13,0.00049041,120]
[356566738,1742680280259,-500.0,0.00049041,100]
[356566739,1742680280287,-834.39,0.00049041,120]
[356566740,1742680280309,-696.25,0.00049041,120]
[356566741,1742680280334,-166.221241,0.00049041,120]
[356566742,1742680280364,-686.72,0.00049041,120]
[356566743,1742680280395,-473.46623037,0.00049041,120]
[356566744,1742680280404,-214.84485396,0.00049041,120]
[356566745,1742680280414,-909.88,0.00049041,120]
[356566746,1742680280424,-503.41,0.00049041,120]
[356566747,1742680280434,-1424.5,0.00049041,120]
[356566748,1742680280443,-500.0,0.00049041,120]
[356566749,1742680280453,-670.46,0.00049041,120]
[356566750,1742680280463,-500.0,0.00049041,120]
[356566751,1742680280473,-602.75,0.00049041,120]
[356566752,1742680280482,-528.26,0.00049041,120]
[356566753,1742680280492,-500.0,0.00049041,120]
[356566754,1742680280501,-939.41,0.00049041,120]
[356566755,1742680280511,-150.0,0.00049043,30]
[356566756,1742680280520,-150.0,0.0004905,30]
[356566757,1742680280530,-152.0,0.00049068,4]
[356566758,1742680280539,-500.0,0.00049082,120]
[356566759,1742680280548,-800.0,0.00049082,120]
[356566760,1742680280558,-2700.0,0.00049082,120]
[356566761,1742680280568,-150.0,0.00049098,30]
[356566762,1742680280577,-35369.84,0.000491,2]
[356566763,1742680280587,-150.0,0.00049102,30]
[356566764,1742680280596,-150.0,0.00049145,30]
[356566765,1742680280606,-150.0,0.00049162,30]
[356566766,1742680280615,-150.0,0.00049185,30]
[356566767,1742680280625,-150.0,0.000492,30]
[356566768,1742680280634,-150.0,0.00049221,30]
[356566769,1742680280643,-150.0,0.00049271,30]
[356566770,1742680280653,-150.0,0.0004928,30]
[356566771,1742680280662,-426.23267517,0.00049315,2]
[356566772,1742680280672,-500.0,0.00049315,120]
[356566773,1742680280682,-1112.04,0.00049315,120]
[356566774,1742680280692,-541.66,0.00049315,120]
[356566775,1742680280702,-191.15,0.00049315,120]
[356566776,1742680280711,-523.07,0.00049315,120]
[356566777,1742680280721,-500.0,0.00049315,120]
[356566778,1742680280731,-502.73518883,0.00049315,120]
[356566779,1742680280740,-1995.08,0.00049315,120]
[356566780,1742680280750,-576.4361886,0.00049315,120]
[356566781,1742680280760,-585.0,0.00049315,120]
[356566782,1742680280770,-3059.89417842,0.00049315,120]
[356566783,1742680280779,-506.53,0.00049315,120]
[356566784,1742680280788,-715.73,0.00049315,120]
[356566785,1742680280798,-500.0,0.00049315,120]
[356566786,1742680280807,-1700.91,0.00049315,120]
[356566787,1742680280817,-749.15,0.00049315,120]
[356566788,1742680280826,-500.0,0.00049315,120]
[356566789,1742680280836,-14463.29,0.00049315,120]
[356566790,1742680280846,-900.87,0.00049315,2]
[356566791,1742680280856,-1076.21,0.00049315,120]
[356566792,1742680280866,-722.27,0.00049315,120]
[356566793,1742680280876,-945.13,0.00049315,120]
[356566794,1742680280885,-189.64893302,0.00049315,100]
[356566795,1742680280894,-834.39,0.00049315,120]
[356566796,1742680280904,-696.25,0.00049315,120]
[356566797,1742680280914,-686.72,0.00049315,120]
[356566798,1742680280924,-909.88,0.00049315,120]
[356566799,1742680280933,-503.41,0.00049315,120]
[356566800,1742680280944,-1424.5,0.00049315,120]
[356566801,1742680280954,-500.0,0.00049315,120]
[356566802,1742680280963,-670.46,0.00049315,120]
[356566803,1742680280973,-594.70844498,0.00049315,120]
[356566804,1742680280982,-602.75,0.00049315,120]
[356566805,1742680280992,-528.26,0.00049315,120]
[356566806,1742680281002,-500.0,0.00049315,120]
[356566807,1742680281011,-939.41,0.00049315,120]
[356566808,1742680281021,-900.0,0.00049315,36]
[356566809,1742680281031,-150.0,0.0004934,30]
[356566810,1742680281040,-3024.69170659,0.00049346,120]
[356566811,1742680281049,-150.0,0.0004935,30]
[356566812,1742680281059,-150.0,0.00049358,30]
[356566813,1742680281068,-150.0,0.00049399,30]
[356566814,1742680281078,-10046.26,0.000494,7]
[356566815,1742680281087,-150.0,0.00049444,30]
[356566816,1742680281097,-150.0,0.00049458,30]
[356566817,1742680281107,-35369.84,0.000495,2]
[356566818,1742680281116,-150.0,0.000495,30]
[356566819,1742680281126,-150.0,0.00049517,30]
[356566820,1742680281135,-150.0,0.00049531,30]
[356566821,1742680281144,-150.0,0.00049577,30]
[356566822,1742680281154,-500.0,0.00049589,120]
[356566823,1742680281163,-1112.04,0.00049589,120]
[356566824,1742680281173,-541.66,0.00049589,120]
[356566825,1742680281183,-523.07,0.00049589,120]
[356566826,1742680281192,-500.0,0.00049589,120]
[356566827,1742680281201,-1995.08,0.00049589,120]
[356566828,1742680281211,-585.0,0.00049589,120]
[356566829,1742680281220,-506.53,0.00049589,120]
[356566830,1742680281229,-715.73,0.00049589,120]
[356566831,1742680281239,-500.0,0.00049589,120]
[356566832,1742680281248,-1700.91,0.00049589,120]
[356566833,1742680281257,-749.15,0.00049589,120]
[356566834,1742680281267,-500.0,0.00049589,120]
[356566835,1742680281277,-14463.29,0.00049589,120]
[356566836,1742680281286,-900.87,0.00049589,2]
[356566837,1742680281301,-1076.21,0.00049589,120]
[356566838,1742680281311,-722.27,0.00049589,120]
[356566839,1742680281321,-945.13,0.00049589,120]
[356566840,1742680281330,-834.39,0.00049589,120]
[356566841,1742680281341,-696.25,0.00049589,120]
[356566842,1742680281351,-686.72,0.00049589,120]
[356566843,1742680281361,-909.88,0.00049589,120]
[356566844,1742680281372,-503.41,0.00049589,120]
[356566845,1742680281383,-1424.5,0.00049589,120]
[356566846,1742680281392,-377.28574615,0.00049589,120]
[356566847,1742680281402,-670.46,0.00049589,120]
[356566848,1742680281411,-602.75,0.00049589,120]
[356566849,1742680281421,-528.26,0.00049589,120]
[356566850,1742680281430,-500.0,0.00049589,120]
[356566851,1742680281439,-939.41,0.00049589,120]
[356566852,1742680281448,-550.44,0.000496,45]